fUSD/lending_fUSD_20240823
["ID","MTS","AMOUNT","RATE_DAILY","PERIOD"]
[335603839,1724371220272,300.0,0.00027,120]
[335603840,1724371222638,733.06061986,0.00027,120]
[335603841,1724371307301,150.0,9.981e-05,2]
[335603842,1724371307323,18.89,9.981e-05,2]
[335603843,1724371348159,131.11,9.981e-05,2]
[335603844,1724371348180,245.41,9.981e-05,2]
[335603845,1724371348202,410.71884039,9.981e-05,2]
[335603846,1724371355390,155.1124595,9.981e-05,2]
[335603847,1724371406406,169.48383418,9.946e-05,2]
[335603848,1724371448018,361.65,8.219e-05,2]
[335603850,1724371470215,723.2,0.00010004,2]
[335603851,1724371478548,3786.88,0.00010003,2]
[335603852,1724371493089,-276.8,0.00010026,2]
[335603853,1724371498067,1565.19256895,0.00010004,2]
[335603854,1724371500495,300.0,0.00010064,2]
[335603855,1724371501680,300.0,0.00010064,2]
[335603856,1724371520581,-13185.1,0.00010065,2]
[335603857,1724371546547,300.0,0.00027,120]
[335603858,1724371589317,319.83637191,0.00027,120]
[335603859,1724371615997,155.0,0.00010026,2]
[335603860,1724371644136,547.15346494,0.00010026,2]
[335603861,1724371650489,3555.1571159,0.00010026,2]
[335603862,1724371682596,196.95172,0.00010026,2]
[335603863,1724371739797,4314.0,0.00027,120]
[335603864,1724371741019,-723.82638589,0.00010097,2]
[335603865,1724371741041,-212.46,0.00010219,2]
[335603866,1724371741063,-882.46252074,0.00010471,2]
[335603867,1724371741088,-361.65,0.00010477,2]
[335603868,1724371741109,-653.64489815,0.00010505,2]
[335603869,1724371741132,-155.0,0.00010505,2]
[335603870,1724371741155,-490.92711518,0.00010566,2]
[335603871,1724371741177,-581.21125635,0.00010566,2]
[335603872,1724371741199,-155.0,0.00010699,2]
[335603873,1724371741688,300.0,0.00010799,2]
[335603874,1724371771413,1050.0,0.0001,2]
[335603875,1724371781386,-790.76,0.000108,2]
[335603876,1724371781409,-421.47,0.000108,2]
[335603877,1724371781432,-790.76,0.000108,2]
[335603878,1724371781454,-421.47,0.000108,2]
[335603879,1724371781476,-790.76,0.000108,2]
[335603880,1724371781499,-421.47,0.000108,2]
[335603881,1724371781520,-1015.63,0.00010862,2]
[335603882,1724371781542,-292.76862131,0.00010862,2]
[335603883,1724371781564,-361.57349,0.0001088,2]
[335603884,1724371781586,-499.99,0.0001088,2]
[335603885,1724371781806,-210.75513701,0.00010888,2]
[335603886,1724371781830,-155.0,0.0001089,2]
[335603887,1724371781854,-3776.5679,0.0001089,2]
[335603888,1724371781889,-51.02485168,0.0001089,2]
[335603889,1724371799847,-7448.97514832,0.0001089,2]
[335603890,1724371799870,-172.94506459,0.00010897,2]
[335603891,1724371799897,-160.97179257,0.00010899,2]
[335603892,1724371799920,-160.97179254,0.00010899,2]
[335603893,1724371799949,-160.97179254,0.00010899,2]
[335603894,1724371799978,-160.97179254,0.00010899,2]
[335603895,1724371800009,-160.97179254,0.00010899,2]
[335603896,1724371800036,-160.97179254,0.00010899,2]
[335603897,1724371800062,-160.97179254,0.00010899,2]
[335603898,1724371800088,-160.97179254,0.00010899,2]
[335603899,1724371800117,-160.97179254,0.000109,2]
[335603900,1724371800148,-790.76,0.000109,2]
[335603901,1724371800178,-138.5736542,0.000109,2]
[335603902,1724371823517,-256.17,0.00010262,2]
[335603906,1724371831830,-727.5020417,0.0001089,2]
[335603907,1724371831841,-2646.0091583,0.0001089,2]
[335603908,1724371831851,-300.0,0.00010898,2]
[335603909,1724371831860,-300.0,0.00010898,2]
[335603910,1724371831869,-282.8963458,0.000109,2]
[335603911,1724371831879,-153.10981789,0.00010959,2]
[335603912,1724371831898,-22.99018211,0.00010959,2]
[335603913,1724371831918,-152.67,0.00010959,2]
[335603914,1724371831928,-250.0,0.00010959,2]
[335603915,1724371831937,-500.0,0.0001096,2]
[335603916,1724371831947,-579.44869358,0.00010979,2]
[335603917,1724371831955,-517.82668965,0.00010989,2]
[335603918,1724371831965,-506.86134482,0.00010989,2]
[335603919,1724371831974,-8088.85507269,0.00010989,2]
[335603920,1724371831985,-3520.05519747,0.00010989,2]
[335603921,1724371831999,-9412.25029509,0.00010989,2]
[335603926,1724371837829,-1177.43376,0.00010989,2]
[335603927,1724371837843,-569.5689955,0.00010989,2]
[335604103,1724371839818,-64673.65775278,0.00010989,2]
[335604154,1724371840304,-12000.18083349,0.00010989,2]
[335604396,1724371842851,-2318.40412654,0.00010989,2]
[335604399,1724371843665,-548.89771154,0.00010989,2]
[335604400,1724371843676,-303.23615036,0.00010989,2]
[335604429,1724371861246,500.0,8.264e-05,2]
[335604430,1724371902412,351.27,8.528e-05,2]
[335604440,1724372291646,4295.9,0.00027,120]
[335604441,1724372384064,255.32504935,0.00010009,2]
[335604442,1724372393590,333.7,8.303e-05,2]
[335604443,1724372584407,513.36783202,0.00012111,30]
[335604444,1724372622393,500.0,8.275e-05,2]
[335604445,1724372622460,500.0,8.275e-05,2]
[335604446,1724372622563,500.0,8.275e-05,2]
[335604447,1724372657723,500.0,8.275e-05,2]
[335604448,1724372736799,1238.11555453,9.5e-05,2]
[335604460,1724372951782,425.84377651,0.00010009,2]
[335604465,1724373002502,150.0,0.00010009,2]
[335604467,1724373013116,317.01,8.219e-05,2]
[335604472,1724373032078,-250.0,0.00010073,2]
[335604473,1724373032087,-168.89,0.00010081,2]
[335604474,1724373032097,-17.50484453,0.00010108,2]
[335604475,1724373032108,-561.05515547,0.00010108,2]
[335604476,1724373032118,-1285.8589478,0.00010156,2]
[335604479,1724373037957,-500.0,0.00010156,2]
[335604480,1724373038067,-147.2410522,0.00010156,2]
[335604481,1724373038077,-156.21,0.00010252,2]
[335604482,1724373038086,-421.44,0.00010296,2]
[335604483,1724373038096,-317.01,0.00010479,2]
[335604484,1724373038105,-1406.31900573,0.000106,2]
[335604485,1724373038115,-155.0,0.00010852,2]
[335604486,1724373038124,-155.0,0.00010861,2]
[335604487,1724373038133,-155.0,0.00010862,2]
[335604488,1724373038142,-155.0,0.00010862,2]
[335604489,1724373038151,-4535.92381264,0.0001088,2]
[335604490,1724373038161,-154.598,0.00010899,2]
[335604491,1724373038170,-300.0,0.00010958,2]
[335604492,1724373038180,-157.19,0.00010959,2]
[335604493,1724373038189,-295.65,0.00010959,2]
[335604494,1724373038198,-2000.0,0.00010959,2]
[335604495,1724373038208,-250.0,0.00010959,2]
[335604496,1724373038217,-7619.38995219,0.00010986,2]
[335604497,1724373038232,-524.24279113,0.00010986,2]
[335604498,1724373038250,-419.32133496,0.00010986,2]
[335604694,1724373040431,-1138.0,0.00010899,2]
[335604696,1724373040441,-74.36,0.00010986,2]
[335604975,1724373043218,-394.75,0.00010986,2]
[335605026,1724373043842,-5904.72000001,0.00010986,2]
[335605027,1724373043854,-1336.92395265,0.00010986,2]
[335605051,1724373046042,-4954.3148262,0.00010986,2]
[335605052,1724373046053,-4385.36946977,0.00010986,2]
[335605053,1724373046065,-3822.15735879,0.00010986,2]
[335605054,1724373046076,-46783.4503143,0.00010986,2]
[335605055,1724373046088,-327.46,0.00010987,2]
[335605056,1724373046097,-271.62253022,0.00010987,2]
[335605057,1724373046107,-3898.50993835,0.00010988,2]
[335605058,1724373046116,-15472.35425237,0.00010989,2]
[335605059,1724373046127,-21423.64276652,0.00010989,2]
[335605060,1724373046140,-7995.2437069,0.00010989,2]
[335605061,1724373046158,-442.79258183,0.00010989,2]
[335605062,1724373046169,-392.00256734,0.00010989,2]
[335605063,1724373046180,-341.79192375,0.00010989,2]
[335605064,1724373046191,-11332.84666192,0.00010989,2]
[335605065,1724373046202,-7995.73871679,0.00010989,2]
[335605066,1724373046211,-500.0,0.00010989,2]
[335605067,1724373046220,-362.96,0.00010989,2]
[335605068,1724373046229,-761.25779,0.00010989,2]
[335605069,1724373046238,-500.0,0.00010989,2]
[335605070,1724373046247,-500.0,0.00010989,2]
[335605071,1724373046256,-447.47023503,0.00010989,2]
[335605073,1724373046267,-52.52976497,0.00010989,2]
[335605074,1724373046276,-500.0,0.00010989,2]
[335605075,1724373046285,-500.0,0.00010989,2]
[335605076,1724373046294,-500.0,0.00010989,2]
[335605077,1724373046303,-500.0,0.00010989,2]
[335605078,1724373046312,-500.0,0.00010989,2]
[335605079,1724373046321,-455.38210398,0.00010989,2]
[335605080,1724373046330,-500.0,0.00010989,2]
[335605081,1724373046339,-500.0,0.00010989,2]
[335605082,1724373046348,-500.0,0.00010989,2]
[335605083,1724373046357,-500.0,0.00010989,2]
[335605084,1724373046366,-500.0,0.00010989,2]
[335605085,1724373046375,-500.0,0.00010989,2]
[335605086,1724373046386,-500.0,0.00010989,2]
[335605087,1724373046395,-500.0,0.00010989,2]
[335605088,1724373046404,-500.0,0.00010989,2]
[335605089,1724373046413,-621.77,0.00010989,2]
[335605090,1724373046422,-870.06142693,0.0001099,4]
[335605091,1724373046443,-1571.42027407,0.0001099,4]
[335605092,1724373046454,-65000.57882558,0.0001099,4]
[335605093,1724373350728,318.967575,0.00027,120]
[335605094,1724373576158,1050.0,0.0001,2]
[335605109,1724374133155,285.3,8.219e-05,2]
[335605110,1724374154951,332.44,9.969e-05,2]
[335605123,1724374180050,1487.11199993,0.00010009,2]
[335605141,1724374232082,-1003.2257048,0.00010026,2]
[335605142,1724374232094,-221.33875424,0.00010026,2]
[335605143,1724374232103,-2803.61468672,0.00010374,2]
[335605144,1724374232112,-366.02830147,0.00010471,2]
[335605145,1724374232121,-285.3,0.00010474,2]
[335605146,1724374232131,-600.39886308,0.00010505,2]
[335605147,1724374232140,-155.0,0.00010505,2]
[335605148,1724374232150,-537.15,0.00010533,2]
[335605149,1724374232160,-195.08206759,0.00010566,2]
[335605150,1724374232171,-114.91793241,0.00010566,2]
[335605151,1724374232181,-175.92801,0.00010673,2]
[335605152,1724374232190,-77.94410755,0.00010737,2]
[335605153,1724374232201,-72.05589245,0.00010737,2]
[335605154,1724374232211,-1500.0,0.00010738,2]
[335605155,1724374232221,-150.0,0.00010771,2]
[335605156,1724374232230,-150.0,0.00010795,2]
[335605157,1724374232240,-77.11258558,0.00010816,2]
[335605158,1724374232266,-222.88741442,0.00010816,2]
[335605159,1724374232275,-621.74855341,0.00010817,2]
[335605160,1724374232293,-437.93208321,0.00010817,2]
[335605161,1724374232303,-595.1591704,0.0001088,2]
[335605162,1724374232314,-39.2223196,0.0001088,2]
[335605163,1724374232324,-209.10062711,0.0001089,2]
[335605164,1724374232333,-427.96955825,0.0001089,2]
[335605165,1724374232355,-1178.81576721,0.0001089,2]
[335605166,1724374232365,-283.8100001,0.0001089,2]
[335605167,1724374232380,-307.36198922,0.0001089,2]
[335605168,1724374232390,-790.15908962,0.0001089,2]
[335605169,1724374232401,-859.65573395,0.0001089,2]
[335605170,1724374232413,-1370.54708877,0.0001089,2]
[335605171,1724374232424,-2573.50724181,0.0001089,2]
[335605172,1724374232434,-1975.73388721,0.0001089,2]
[335605173,1724374232449,-856.26166783,0.0001089,2]
[335605189,1724374238467,-6904.77050657,0.0001089,2]
[335605190,1724374238576,-1528.98295519,0.0001089,2]
[335605191,1724374238634,-580.56000002,0.0001089,2]
[335605230,1724374240288,-1059.5373295,0.0001089,2]
[335605231,1724374240300,-913.62199772,0.0001089,2]
[335605232,1724374240311,-1328.605,0.0001089,2]
[335605233,1724374240344,-12138.61778703,0.0001089,2]
[335605234,1724374240354,-6718.79810734,0.00010899,2]
[335605235,1724374240363,-6718.79810731,0.00010899,2]
[335605236,1724374240373,-4373.70674833,0.00010899,2]
[335605237,1724374240384,-1373.17251629,0.00010899,2]
[335605238,1724374240457,-331.06270866,0.00010899,2]
[335605317,1724374244032,1000.0,9.969e-05,2]
[335605489,1724374246148,-640.85613403,0.00010899,2]
[335605491,1724374246158,-1138.46706718,0.00010899,2]
[335605493,1724374246169,-2835.46607911,0.00010899,2]
[335605495,1724374246180,-2744.86496102,0.00010899,2]
[335605497,1724374246190,-2605.4791304,0.00010899,2]
[335605499,1724374246201,-4102.0604193,0.00010899,2]
[335605501,1724374246212,-11.25855761,0.00010899,2]
[335605503,1724374246221,-1321.35929565,0.00010899,2]
[335605505,1724374246232,-476.61499977,0.00010899,2]
[335605508,1724374246247,-253.90297784,0.00010899,2]
[335605510,1724374246261,-366.62058302,0.00010899,2]
[335605512,1724374246272,-477.69739199,0.00010899,2]
[335605523,1724374246369,-617.45933672,0.00010899,2]
[335605525,1724374246380,-3205.14352232,0.00010899,2]
[335605527,1724374246389,-1294.90941969,0.00010899,2]
[335605529,1724374246400,-5423.88868762,0.00010899,2]
[335605531,1724374246409,-1828.15473964,0.00010899,2]
[335605533,1724374246420,-4890.64336767,0.00010899,2]
[335605535,1724374246430,-6718.79810731,0.00010899,2]
[335605537,1724374246439,-1257.5209126,0.00010899,2]
[335605539,1724374246449,-608.35231128,0.000109,2]
[335605541,1724374246460,-5999.99999999,0.000109,2]
[335605543,1724374246472,-110.44579604,0.000109,2]
[335605545,1724374246481,-193.48826317,0.000109,2]
[335605547,1724374246490,-250.0,0.00010959,2]
[335605549,1724374246500,-779.07,0.00010959,2]
[335605551,1724374246509,-167.32,0.00010959,2]
[335605553,1724374246518,-760.53798217,0.00010979,2]
[335605555,1724374246527,-151.56,0.0001098,2]
[335605556,1724374246535,-500.0,0.00010988,2]
[335605558,1724374246545,-7027.965,0.00010989,2]
[335605560,1724374246554,-500.0,0.00010989,2]
[335605562,1724374246563,-500.0,0.00010989,2]
[335605564,1724374246574,-428.91,0.00010989,2]
[335605566,1724374246583,-500.0,0.00010989,2]
[335605568,1724374246593,-500.0,0.00010989,2]
[335605570,1724374246602,-550.37,0.00010989,2]
[335605572,1724374246611,-500.0,0.00010989,2]
[335605574,1724374246621,-270.98,0.00010989,2]
[335605576,1724374246630,-628.59,0.00010989,2]
[335605578,1724374246639,-500.0,0.00010989,2]
[335605580,1724374246648,-500.0,0.00010989,2]
[335605582,1724374246658,-500.0,0.00010989,2]
[335605584,1724374246667,-591.29,0.00010989,2]
[335605586,1724374246676,-500.0,0.00010989,2]
[335605588,1724374246685,-603.08,0.00010989,2]
[335605590,1724374246695,-500.0,0.00010989,2]
[335605591,1724374246704,-500.0,0.00010989,2]
[335605593,1724374246714,-500.0,0.00010989,2]
[335605595,1724374246723,-289.77,0.00010989,2]
[335605597,1724374246732,-500.0,0.00010989,2]
[335605599,1724374246742,-500.0,0.00010989,2]
[335605601,1724374246753,-500.0,0.00010989,2]
[335605603,1724374246762,-500.0,0.00010989,2]
[335605605,1724374246771,-500.0,0.00010989,2]
[335605607,1724374246780,-500.0,0.00010989,2]
[335605609,1724374246790,-500.0,0.00010989,2]
[335605611,1724374246799,-500.0,0.00010989,2]
[335605613,1724374246807,-500.0,0.00010989,2]
[335605615,1724374246817,-500.0,0.00010989,2]
[335605617,1724374246826,-500.0,0.00010989,2]
[335605618,1724374246835,-500.0,0.00010989,2]
[335605620,1724374246844,-609.03,0.00010989,2]
[335605622,1724374246854,-500.0,0.00010989,2]
[335605624,1724374246863,-161.5,0.00010989,2]
[335605626,1724374246872,-500.0,0.00010989,2]
[335605628,1724374246882,-500.0,0.00010989,2]
[335605629,1724374246891,-201.57,0.00010989,2]
[335605631,1724374246901,-151.0,0.00010989,2]
[335605633,1724374246914,-500.0,0.00010989,2]
[335605635,1724374246923,-500.0,0.00010989,2]
[335605637,1724374246933,-500.0,0.00010989,2]
[335605639,1724374246942,-500.0,0.00010989,2]
[335605641,1724374246952,-190.636864,0.00010989,2]
[335605643,1724374246961,-500.0,0.00010989,2]
[335605645,1724374246970,-190.636864,0.00010989,2]
[335605647,1724374246979,-500.0,0.00010989,2]
[335605648,1724374246990,-500.0,0.00010989,2]
[335605650,1724374247000,-500.0,0.00010989,2]
[335605652,1724374247009,-500.0,0.00010989,2]
[335605654,1724374247018,-416.02,0.00010989,2]
[335605656,1724374247027,-500.0,0.00010989,2]
[335605658,1724374247036,-500.0,0.00010989,2]
[335605660,1724374247046,-500.0,0.00010989,2]
[335605662,1724374247055,-500.0,0.00010989,2]
[335605663,1724374247064,-500.0,0.00010989,2]
[335605665,1724374247074,-500.0,0.00010989,2]
[335605667,1724374247083,-500.0,0.00010989,2]
[335605669,1724374247092,-24.21335155,0.00010989,2]
[335605671,1724374247105,-475.78664845,0.00010989,2]
[335605673,1724374247114,-500.0,0.00010989,2]
[335605675,1724374247124,-271.01,0.00010989,2]
[335605677,1724374247133,-500.0,0.00010989,2]
[335605679,1724374247142,-500.0,0.00010989,2]
[335605680,1724374247151,-500.0,0.00010989,2]
[335605682,1724374247160,-500.0,0.00010989,2]
[335605684,1724374247169,-500.0,0.00010989,2]
[335605685,1724374247178,-492.70662797,0.00010989,2]
[335605686,1724374247189,-7.29337203,0.00010989,2]
[335605687,1724374247199,-500.0,0.00010989,2]
[335605688,1724374247208,-500.0,0.00010989,2]
[335605689,1724374247217,-500.0,0.00010989,2]
[335605690,1724374247401,-500.0,0.00010989,2]
[335605691,1724374247414,-500.0,0.00010989,2]
[335605692,1724374247423,-500.0,0.00010989,2]
[335605693,1724374247434,-500.0,0.00010989,2]
[335605694,1724374247443,-500.0,0.00010989,2]
[335605695,1724374247452,-500.0,0.00010989,2]
[335605696,1724374247461,-339.76,0.00010989,2]
[335605697,1724374247471,-633.2,0.00010989,2]
[335605698,1724374247480,-500.0,0.00010989,2]
[335605699,1724374247489,-207.277749,0.00010989,2]
[335605700,1724374247498,-500.0,0.00010989,2]
[335605701,1724374247508,-500.0,0.00010989,2]
[335605702,1724374247517,-500.0,0.00010989,2]
[335605703,1724374247526,-202.1,0.00010989,2]
[335605704,1724374247535,-500.0,0.00010989,2]
[335605705,1724374247545,-500.0,0.00010989,2]
[335605706,1724374247554,-275.11,0.00010989,2]
[335605707,1724374247563,-500.0,0.00010989,2]
[335605708,1724374247572,-500.0,0.00010989,2]
[335605709,1724374247582,-500.0,0.00010989,2]
[335605710,1724374247591,-500.0,0.00010989,2]
[335605711,1724374247600,-500.0,0.00010989,2]
[335605712,1724374247610,-500.0,0.00010989,2]
[335605713,1724374247618,-151.0,0.00010989,2]
[335605714,1724374247627,-151.0,0.00010989,2]
[335605715,1724374247636,-500.0,0.00010989,2]
[335605716,1724374247645,-500.0,0.00010989,2]
[335605717,1724374247654,-500.0,0.00010989,2]
[335605718,1724374247663,-500.0,0.00010989,2]
[335605720,1724374247673,-500.0,0.00010989,2]
[335605722,1724374247682,-500.0,0.00010989,2]
[335605724,1724374247691,-151.0,0.00010989,2]
[335605726,1724374247700,-151.0,0.00010989,2]
[335605728,1724374247709,-500.0,0.00010989,2]
[335605730,1724374247718,-500.0,0.00010989,2]
[335605732,1724374247727,-151.0,0.00010989,2]
[335605734,1724374247736,-500.0,0.00010989,2]
[335605736,1724374247745,-500.0,0.00010989,2]
[335605738,1724374247754,-500.0,0.00010989,2]
[335605740,1724374247763,-642.79,0.00010989,2]
[335605742,1724374247772,-642.79,0.00010989,2]
[335605744,1724374247781,-642.79,0.00010989,2]
[335605746,1724374247790,-642.79,0.00010989,2]
[335605747,1724374247799,-642.79,0.00010989,2]
[335605749,1724374247808,-500.0,0.00010989,2]
[335605751,1724374247817,-500.0,0.00010989,2]
[335605753,1724374247826,-500.0,0.00010989,2]
[335605755,1724374247835,-500.0,0.00010989,2]
[335605757,1724374247844,-356.78383441,0.00010989,2]
[335605760,1724374247857,-143.21616559,0.00010989,2]
[335605761,1724374247866,-500.0,0.00010989,2]
[335605763,1724374247875,-500.0,0.00010989,2]
[335605765,1724374247884,-500.0,0.00010989,2]
[335605767,1724374247894,-500.0,0.00010989,2]
[335605769,1724374247903,-500.0,0.00010989,2]
[335605771,1724374247914,-500.0,0.00010989,2]
[335605773,1724374247923,-500.0,0.00010989,2]
[335605775,1724374247932,-544.05,0.00010989,2]
[335605776,1724374247941,-544.05,0.00010989,2]
[335605777,1724374247951,-544.05,0.00010989,2]
[335605778,1724374247960,-544.05,0.00010989,2]
[335605779,1724374247969,-544.05,0.00010989,2]
[335605780,1724374247978,-544.05,0.00010989,2]
[335605781,1724374247986,-151.0,0.00010989,2]
[335605782,1724374247995,-151.0,0.00010989,2]
[335605783,1724374248007,-585.50492,0.00010989,2]
[335605784,1724374248016,-500.0,0.00010989,2]
[335605785,1724374248025,-151.0,0.00010989,2]
[335605786,1724374248034,-151.0,0.00010989,2]
[335605787,1724374248043,-151.0,0.00010989,2]
[335605788,1724374248052,-151.0,0.00010989,2]
[335605789,1724374248061,-151.0,0.00010989,2]
[335605790,1724374248071,-151.0,0.00010989,2]
[335605791,1724374248080,-278.124826,0.00010989,2]
[335605792,1724374248089,-151.0,0.00010989,2]
[335605793,1724374248098,-151.0,0.00010989,2]
[335605795,1724374248107,-209.453387,0.00010989,2]
[335605797,1724374248116,-151.0,0.00010989,2]
[335605799,1724374248126,-278.124826,0.00010989,2]
[335605801,1724374248135,-500.0,0.00010989,2]
[335605803,1724374248144,-636.99,0.00010989,2]
[335605805,1724374248153,-500.0,0.00010989,2]
[335605807,1724374248162,-360.56,0.00010989,2]
[335605808,1724374248171,-278.124826,0.00010989,2]
[335605810,1724374248181,-278.124826,0.00010989,2]
[335605812,1724374248190,-151.0,0.00010989,2]
[335605814,1724374248201,-286.294607,0.00010989,2]
[335605816,1724374248211,-500.0,0.00010989,2]
[335605818,1724374248220,-500.0,0.00010989,2]
[335605820,1724374248230,-500.0,0.00010989,2]
[335605822,1724374248239,-500.0,0.00010989,2]
[335605824,1724374248248,-500.0,0.00010989,2]
[335605826,1724374248264,-500.0,0.00010989,2]
[335605828,1724374248273,-500.0,0.00010989,2]
[335605830,1724374248282,-500.0,0.00010989,2]
[335605831,1724374248291,-500.0,0.00010989,2]
[335605833,1724374248300,-537.22,0.00010989,2]
[335605835,1724374248309,-351.06,0.00010989,2]
[335605837,1724374248318,-500.0,0.00010989,2]
[335605839,1724374248328,-500.0,0.00010989,2]
[335605841,1724374248337,-500.0,0.00010989,2]
[335605843,1724374248346,-500.0,0.00010989,2]
[335605845,1724374248355,-500.0,0.00010989,2]
[335605847,1724374248364,-500.0,0.00010989,2]
[335605849,1724374248373,-500.0,0.00010989,2]
[335605851,1724374248382,-500.0,0.00010989,2]
[335605853,1724374248392,-500.0,0.00010989,2]
[335605855,1724374248401,-399.85,0.00010989,2]
[335605856,1724374248410,-500.0,0.00010989,2]
[335605858,1724374248419,-500.0,0.00010989,2]
[335605860,1724374248428,-500.0,0.00010989,2]
[335605862,1724374248437,-536.42,0.00010989,2]
[335605864,1724374248446,-500.0,0.00010989,2]
[335605866,1724374248456,-500.0,0.00010989,2]
[335605868,1724374248465,-500.0,0.00010989,2]
[335605870,1724374248474,-500.0,0.00010989,2]
[335605872,1724374248483,-500.0,0.00010989,2]
[335605874,1724374248492,-500.0,0.00010989,2]
[335605876,1724374248507,-367.68,0.00010989,2]
[335605878,1724374248517,-809.51,0.00010989,2]
[335605880,1724374248526,-809.51,0.00010989,2]
[335605882,1724374248535,-809.51,0.00010989,2]
[335605884,1724374248545,-809.51,0.00010989,2]
[335605886,1724374248554,-809.51,0.00010989,2]
[335605888,1724374248563,-809.51,0.00010989,2]
[335605890,1724374248573,-500.0,0.00010989,2]
[335605892,1724374248582,-500.0,0.00010989,2]
[335605894,1724374248591,-500.0,0.00010989,2]
[335605896,1724374248601,-500.0,0.00010989,2]
[335605898,1724374248611,-500.0,0.00010989,2]
[335605900,1724374248620,-500.0,0.00010989,2]
[335605902,1724374248630,-500.0,0.00010989,2]
[335605904,1724374248639,-441.77,0.00010989,2]
[335605905,1724374248649,-500.0,0.00010989,2]
[335605907,1724374248658,-360.04116038,0.00010989,2]
[335605910,1724374248671,-139.95883962,0.00010989,2]
[335605912,1724374248680,-231.37,0.00010989,2]
[335605914,1724374248690,-500.0,0.00010989,2]
[335605916,1724374248700,-500.0,0.00010989,2]
[335605918,1724374248710,-304.34823018,0.00010989,2]
[335605920,1724374248720,-500.0,0.00010989,2]
[335605922,1724374248729,-500.0,0.00010989,2]
[335605924,1724374248739,-592.08,0.00010989,2]
[335605926,1724374248748,-500.0,0.00010989,2]
[335605928,1724374248758,-291.77566525,0.00010989,2]
[335605930,1724374248767,-500.0,0.00010989,2]
[335605932,1724374248777,-500.0,0.00010989,2]
[335605934,1724374248786,-276.805792,0.00010989,2]
[335605935,1724374248795,-256.192008,0.00010989,2]
[335605937,1724374248805,-276.805792,0.00010989,2]
[335605939,1724374248814,-256.192008,0.00010989,2]
[335605941,1724374248823,-276.805792,0.00010989,2]
[335605943,1724374248832,-256.192008,0.00010989,2]
[335605945,1724374248841,-276.805792,0.00010989,2]
[335605947,1724374248851,-256.192008,0.00010989,2]
[335605949,1724374248860,-140.87196895,0.00010989,2]
[335605951,1724374248872,-359.12803105,0.00010989,2]
[335605953,1724374248882,-531.529939,0.00010989,2]
[335605955,1724374248891,-531.529939,0.00010989,2]
[335605957,1724374248902,-531.529939,0.00010989,2]
[335605959,1724374248912,-531.529939,0.00010989,2]
[335605961,1724374248925,-500.0,0.00010989,2]
[335605963,1724374248935,-500.0,0.00010989,2]
[335605965,1724374248944,-500.0,0.00010989,2]
[335605967,1724374248953,-500.0,0.00010989,2]
[335605969,1724374248963,-500.0,0.00010989,2]
[335605971,1724374248973,-500.0,0.00010989,2]
[335605973,1724374248982,-500.0,0.00010989,2]
[335605975,1724374248992,-500.0,0.00010989,2]
[335605977,1724374249004,-275.36,0.00010989,2]
[335605979,1724374249014,-500.0,0.00010989,2]
[335605981,1724374249025,-500.0,0.00010989,2]
[335605983,1724374249035,-500.0,0.00010989,2]
[335605984,1724374249044,-239.51,0.00010989,2]
[335605986,1724374249054,-151.0,0.00010989,2]
[335605988,1724374249064,-151.0,0.00010989,2]